[Event "7th Sharjah Masters 2024"]
[Site "Sharjah"]
[Date "2024.05.14"]
[Round "1.31"]
[White "Banusz, Tamas"]
[Black "Zemlyanskii, Ivan"]
[Result "1/2-1/2"]
[ECO "D02"]
[WhiteElo "2623"]
[BlackElo "2516"]
[Annotator "TA"]
[PlyCount "97"]
[EventDate "2024.05.13"]
[EventType "swiss"]
[EventCountry "UAE"]
[SourceTitle "playchess.com"]
[Source "ChessBase"]
[SourceQuality "1"]
[TimeControl "5400+30"]

{[%evp 17,97,13,8,0,0,0,0,0,0,0,0,-14,-18,-17,-14,-19,-14,-47,-42,-35,-56,-140,-112,-130,-140,-146,-128,-172,-152,-140,-99,-98,-102,-94,-101,-110,-98,-189,-169,-174,-175,-155,-97,-150,-31,-32,-9,-14,0,0,0,0,0,0,0,0,0,0,0,0,0,0,0,0,0,0,0,0,0,0,0,0,0,0,0,0,0,0,0,0,0,0]} 1. Nf3 {[%emt 1:31:00]} Nf6 {[%emt 1:31:00]} 2. d4 {[%emt 0:00:30]} g6 {[%emt 0:00:30]} 3. Nbd2 {[%emt 0:00:30]} d5 {[%emt 0:00:30]} 4. e3 {[%emt 0:00:30]} Bg7 {[%emt 0:00:30]} 5. c4 {[%emt 0:00:30]} O-O {[%emt 0:00:30]} 6. b4 {[%emt 0:00:30]} a5 {[%emt 0:00:30] D02: 1 d4 d5 2 Nf3 sidelines, including 2...Nf6 3 g3 and 2...Nf6 3 Bf4.} 7. b5 {[%emt 0:00:30]} c5 {[%emt 0:00:30]} 8. dxc5 {[%emt 0:00:30]} dxc4 {[%emt 0:00:30]} 9. Bb2 {[%emt 0:00:30]} Nbd7 {[%emt 0:00:30]} 10. Bxc4 $146 {[%emt 0:00:30]} ({Predecessor:} 10. c6 bxc6 11. bxc6 Nc5 12. Nxc4 Qc7 13. Nd4 Rd8 14. Qc2 Ba6 15. Be2 e5 16. Nb3 {1-0 Ushenina,A (2395)-Maltsevskaya,A (2296) Wch Blitz (Women) 2022 (15)}) 10... Nxc5 {[%emt 0:00:30]} 11. O-O {[%emt 0:00:30]} Bg4 {[%emt 0:00:30]} 12. h3 {[%emt 0:00:30]} Bxf3 {[%emt 0:00:30]} 13. Nxf3 {[%emt 0:00:30]} Nfe4 {[%emt 0:00:30]} 14. Bxg7 {[%emt 0:00:30]} Qxd1 {[%emt 0:00:30]} 15. Rfxd1 {[%emt 0:00:30]} Kxg7 {[%emt 0:00:30]} 16. Rac1 {[%emt 0:00:30]} Rac8 {[%emt 0:00:30]} 17. Bf1 {[%emt 0:00:30]} Nd6 {[%emt 0:00:30]} 18. Ne5 {[%emt 0:00:30]} Na4 {[%emt 0:00:30]} 19. Rxc8 {[%emt 0:00:30]} (19. Nd7 $15 Nc3 20. Rxc3 Rxc3 21. Nxf8 Kxf8 22. Bd3) 19... Rxc8 $17 {[%emt 0:00:30]} 20. Rd4 {[%emt 0:00:30] [#]} Nb6 $1 {[%emt 0:00:30]} 21. Rd2 {[%emt 0:00:30]} Rc1 {[%emt 0:00:30]} 22. Nd3 {[%emt 0:00:30]} Rb1 {[%emt 0:00:30]} 23. Rb2 {[%emt 0:00:30]} Rd1 {[%emt 0:00:30]} 24. Rc2 {[%emt 0:00:30]} Nd5 {[%emt 0:00:30]} 25. g4 {[%emt 0:00:30]} b6 {[%emt 0:00:30]} 26. Kg2 {[%emt 0:00:30]} Nxb5 {[%emt 0:00:30]} 27. Rb2 {[%emt 0:00:30]} (27. Nb2 $17 Na3 28. Nxd1 Nxc2 29. Kf3) 27... Nbc3 $19 {[%emt 0:00:30]} 28. Ne5 {[%emt 0:00:30]} Rb1 {[%emt 0:00:30]} 29. Rd2 {[%emt 0:00:30]} Rb4 {[%emt 0:00:30]} (29... e6 $142 {...a4 is the strong threat.} 30. Bc4 Kf6 31. Bxd5 Nxd5 (31... exd5 $2 32. Nc6 $19) (31... Kxe5 $2 32. Bc6 $19) 32. Nd7+ Ke7) 30. Rc2 {[%emt 0:00:30]} (30. Bc4 $142) 30... f6 {[%emt 0:00:30]} (30... Ra4 $17 31. Bc4 f6 32. Bxd5 Nxd5) 31. Nc6 $15 {[%emt 0:00:30]} Re4 {[%emt 0:00:30]} (31... Ra4 $5 32. Nxe7 Nxe7 33. Rxc3 Rxa2 $16) 32. Nd4 {[%emt 0:00:30]} e5 {[%emt 0:00:30]} 33. Ne6+ $1 {[%emt 0:00:30]} Kf7 {[%emt 0:00:30]} 34. Nc7 $1 {[%emt 0:00:30]} Ke7 $1 {[%emt 0:00:30]} 35. Nxd5+ {[%emt 0:00:30]} Nxd5 {[%emt 0:00:30]} 36. Rc6 {[%emt 0:00:30]} Kd7 {[%emt 0:00:30]} 37. Bb5 {[%emt 0:00:30]} Nc7 {[%emt 0:00:30]} ({Don't go for} 37... Ke7 $2 38. a3 $18) 38. Rxb6+ {[%emt 0:00:30]} (38. Rxf6+ $2 {too greedy.} Nxb5 39. Rxb6 Nd6 $19) 38... Nxb5 {[%emt 0:00:30]} 39. Rxb5 {[%emt 0:00:30]} Ra4 {[%emt 0:00:30]} 40. Rb7+ {[%emt 0:00:30]} Ke6 {[%emt 0:00:30]} 41. Rxh7 {[%emt 0:00:30]} g5 {[%emt 0:00:30]} 42. Ra7 {[%emt 0:00:30]} e4 {[%emt 0:00:30]} 43. Rb7 {[%emt 0:00:30]} Rxa2 {[%emt 0:00:30]} 44. Rb6+ {[%emt 0:00:30]} Ke5 {[%emt 0:00:30]} 45. Rb5+ {[%emt 0:00:30]} Kd6 {[%emt 0:00:30]} 46. Rb6+ {[%emt 0:00:30]} Ke5 {[%emt 0:00:30]} 47. Rb5+ {[%emt 0:00:30]} Ke6 {[%emt 0:00:30]} 48. Rb6+ {[%emt 0:00:30]} Ke5 {[%emt 0:00:30]} 49. Rb5+ {[%emt 0:00:30]} 1/2-1/2

[Event "7th Sharjah Masters 2024"]
[Site "Sharjah"]
[Date "2024.05.14"]
[Round "1.32"]
[White "Avila Pavas, Santiago"]
[Black "Suleymanli, Aydin"]
[Result "1/2-1/2"]
[ECO "C47"]
[WhiteElo "2516"]
[BlackElo "2621"]
[Annotator "TA"]
[PlyCount "89"]
[EventDate "2024.05.13"]
[EventType "swiss"]
[EventCountry "UAE"]
[SourceTitle "playchess.com"]
[Source "ChessBase"]
[SourceQuality "1"]
[TimeControl "5400+30"]

{[%evp 17,89,6,0,0,0,0,9,0,1,0,14,8,8,7,28,16,22,0,0,0,0,0,6,-14,-6,-9,-5,-6,-5,-6,-2,0,0,0,0,0,0,0,53,57,66,66,60,0,0,0,2,0,8,8,8,8,18,15,17,6,7,0,0,0,0,0,0,0,0,0,0,0,0,0,0,0,0,0]} 1. e4 {[%emt 0:00:07]} e5 {[%emt 0:00:05]} 2. Nf3 {[%emt 0:00:11]} Nc6 {[%emt 0:00:04]} 3. d4 {[%emt 0:00:13]} exd4 {[%emt 0:00:20]} 4. Nxd4 {[%emt 0:00:10]} Nf6 {[%emt 0:00:54]} 5. Nc3 {[%emt 0:00:16]} Bb4 {[%emt 0:00:11]} 6. Nxc6 {[%emt 0:00:21]} bxc6 {[%emt 0:00:05]} 7. Bd3 {[%emt 0:00:30]} d5 {[%emt 0:00:19]} 8. exd5 {[%emt 0:00:17]} O-O {[%emt 0:00:05]} 9. O-O {[%emt 0:00:29]} cxd5 {[%emt 0:00:10]} 10. h3 {[%emt 0:00:48]} c6 {[%emt 0:02:54]} 11. Qf3 {[%emt 0:00:28]} Bd6 {[%emt 0:04:03]} 12. Bf4 {[%emt 0:04:15]} Qc7 {[%emt 0:00:30]} 13. Ne2 {[%emt 0:09:35]} Re8 {[%emt 0:05:31]} 14. Rae1 {[%emt 0:14:29]} Bd7 {[%emt 0:05:16]} 15. c4 {[%emt 0:24:13]} Rab8 {[%emt 0:06:05]} 16. b3 {[%emt 0:01:42]} Bxf4 {[%emt 0:02:28]} (16... Be5 {is interesting.} 17. cxd5 cxd5 18. Bxe5 Qxe5 19. Nc3 Qd6) 17. Nxf4 {[%emt 0:00:41]} Qa5 {[%emt 0:01:21][%csl LRa2,LRe1]} 18. Rxe8+ {[%emt 0:09:11]} Rxe8 {[%emt 0:02:40]} 19. cxd5 {[%emt 0:00:10]} cxd5 {[%emt 0:00:54]} 20. Nh5 {[%emt 0:08:29]} Nxh5 {[%emt 0:02:47]} 21. Qxh5 {[%emt 0:00:13]} g6 {[%emt 0:00:11]} 22. Qf3 {[%emt 0:04:20]} Be6 {[%emt 0:04:03]} 23. Qe2 {[%emt 0:01:27]} Qc3 {[%emt 0:00:58]} 24. Rd1 {[%emt 0:00:48]} Rc8 {[%emt 0:02:16]} 25. h4 {[%emt 0:03:00][%cal Bh3h4,Bh4h5][%mdl 32]} a5 {[%emt 0:04:54]} 26. h5 {[%emt 0:01:05]} Qf6 {[%emt 0:04:21]} 27. Qd2 {[%emt 0:01:19]} Qc3 {[%emt 0:04:55]} (27... gxh5 $11 28. Qxa5 h6) 28. Qg5 $1 $14 {[%emt 0:04:25]} Qd4 {[%emt 0:26:32]} 29. Be2 {[%emt 0:00:53]} Qb2 {[%emt 0:00:42][%csl LRa2,LRe2]} 30. Bf3 {[%emt 0:03:03]} ({White should try} 30. Ba6 $1 $14 Qc2 31. Rf1) 30... Qxa2 $11 {[%emt 0:01:22] The position is equal.} 31. Bxd5 {[%emt 0:04:26]} Qc2 {[%emt 0:03:55]} 32. Rd2 {[%emt 0:03:13]} Qc1+ {[%emt 0:01:41]} 33. Kh2 {[%emt 0:00:01] [#] And now hxg6 would win.} Qc5 {[%emt 0:02:10][%cal Oh7h6] White must now prevent ...h6!} 34. f4 {[%emt 0:01:37]} Qd6 {[%emt 0:10:31]} (34... Qe3 {with more complications.} 35. Bxe6 fxe6 36. Rd7 e5) 35. Bxe6 {[%emt 0:00:15]} Qxe6 {[%emt 0:00:05]} 36. Qxa5 {[%emt 0:01:15][%mdl 4096] Endgame. KQR-KQR} Qf6 {[%emt 0:00:42] Repels Rd8+} 37. Qg5 {[%emt 0:00:32]} Qxg5 {[%emt 0:00:14]} 38. fxg5 {[%emt 0:00:01]} gxh5 {[%emt 0:00:23] KR-KR} 39. b4 {[%emt 0:00:31]} Rb8 {[%emt 0:00:10]} 40. Rb2 {[%emt 0:00:04]} Rb5 {[%emt 0:00:01]} 41. Kg3 {[%emt 0:01:09]} Kf8 {[%emt 0:01:59]} 42. Kh4 {[%emt 0:00:45]} Kg7 {[%emt 0:00:09]} 43. g4 {[%emt 0:00:29]} hxg4 {[%emt 0:00:18]} 44. Kxg4 {[%emt 0:00:01]} f6 {[%emt 0:01:04]} 45. gxf6+ {[%emt 0:01:33] Weighted Error Value: White=0.05 (flawless) /Black=0.05 (flawless) .  Mistake:       	White=1     	Black=1      OK:         	White=14    	Black=17     Best:        	White=1     	Black=2      Strong:       	White=1     	---} 1/2-1/2

[Event "7th Sharjah Masters 2024"]
[Site "Sharjah"]
[Date "2024.05.14"]
[Round "1.33"]
[White "Gledura, Benjamin"]
[Black "Siddharth, Jagadeesh"]
[Result "1/2-1/2"]
[ECO "D97"]
[WhiteElo "2619"]
[BlackElo "2512"]
[Annotator "RC"]
[PlyCount "30"]
[EventDate "2024.05.13"]
[EventType "swiss"]
[EventCountry "UAE"]
[SourceTitle "playchess.com"]
[Source "ChessBase"]
[SourceQuality "1"]
[TimeControl "5400+30"]

1. d4 {[%emt 0:00:05]} Nf6 {[%emt 0:00:07]} 2. c4 {[%emt 0:00:14]} g6 {[%emt 0:00:09]} 3. Nc3 {[%emt 0:05:47]} d5 {[%emt 0:00:00]} 4. Nf3 {[%emt 0:00:30]} Bg7 {[%emt 0:00:12]} 5. Qb3 {[%emt 0:00:39]} dxc4 {[%emt 0:00:08]} 6. Qxc4 {[%emt 1:26:15]} O-O 7. e4 {[%emt 0:00:00]} a6 {[%emt 0:00:17]} 8. e5 {[%emt 0:00:00]} b5 {[%emt 0:00:00]} 9. Qb3 {[%emt 0:00:00]} Nfd7 {[%emt 0:00:23]} 10. e6 {[%emt 0:00:00]} fxe6 {[%emt 0:00:07]} 11. Be3 {[%emt 0:00:00]} Nf6 {[%emt 0:00:09]} 12. Be2 {[%emt 0:03:00]} Nc6 {[%emt 0:06:15]} 13. Rd1 {[%emt 0:00:00]} Qd6 14. O-O {[%emt 0:00:00]} Ng4 {[%emt 0:14:21]} 15. h3 Nxe3 {[%emt 0:00:00]} 1/2-1/2

[Event "7th Sharjah Masters 2024"]
[Site "Sharjah"]
[Date "2024.05.14"]
[Round "1.34"]
[White "Blohberger, Felix"]
[Black "Maurizzi, Marc`Andria"]
[Result "1/2-1/2"]
[ECO "D30"]
[WhiteElo "2506"]
[BlackElo "2618"]
[Annotator "TA"]
[PlyCount "61"]
[EventDate "2024.05.13"]
[EventType "swiss"]
[EventCountry "UAE"]
[SourceTitle "playchess.com"]
[Source "ChessBase"]
[SourceQuality "1"]
[TimeControl "5400+30"]

{[%evp 9,61,21,36,29,24,4,18,0,11,18,20,12,25,20,28,9,6,18,10,14,13,20,26,23,10,9,13,0,10,11,29,36,38,33,23,29,33,35,29,10,12,18,17,0,0,0,0,0,0,0,0,0,7,0]} 1. d4 {[%emt 0:00:06]} d5 {[%emt 0:00:08]} 2. c4 {[%emt 0:00:06]} e6 {[%emt 0:00:03]} 3. Nf3 {[%emt 0:00:11]} a6 {[%emt 0:00:11]} 4. Bg5 {[%emt 0:01:41]} Be7 {[%emt 0:00:40]} 5. Bxe7 {[%emt 0:00:10]} Qxe7 {[%emt 0:00:02]} 6. e3 {[%emt 0:00:43]} Nf6 {[%emt 0:01:46]} 7. Nc3 {[%emt 0:00:10]} O-O {[%emt 0:03:43]} 8. Rc1 {[%emt 0:01:56]} b6 {[%emt 0:08:47][%cal Bb7b6,Bb6b5][%mdl 32]} 9. cxd5 {[%emt 0:00:23]} exd5 {[%emt 0:00:08]} 10. Bd3 {[%emt 0:00:17]} Bb7 {[%emt 0:00:27]} 11. O-O {[%emt 0:00:11]} Nbd7 {[%emt 0:01:16]} 12. Qe2 {[%emt 0:06:28]} c5 {[%emt 0:05:40]} 13. b3 {[%emt 0:00:09]} b5 {[%emt 0:13:02]} 14. dxc5 {[%emt 0:01:23]} Nxc5 {[%emt 0:00:26]} 15. Nd4 {[%emt 0:06:46][%cal Oc3b5]} g6 {[%emt 0:00:48]} 16. Rc2 {[%emt 0:05:36]} Rac8 {[%emt 0:09:46]} 17. Rfc1 {[%emt 0:00:43]} Nfe4 {[%emt 0:01:14]} 18. Nd1 {[%emt 0:14:35]} h5 {[%emt 0:11:33]} 19. f3 {[%emt 0:01:51]} Nf6 {[%emt 0:07:00]} 20. Qd2 {[%emt 0:00:29]} Ne6 {[%emt 0:13:54]} 21. Nxe6 {[%emt 0:11:10]} Qxe6 {[%emt 0:00:27]} 22. Qb4 {[%emt 0:03:11]} Rxc2 {[%emt 0:06:12]} 23. Rxc2 {[%emt 0:00:35]} Rc8 {[%emt 0:00:58]} 24. Qd4 {[%emt 0:06:11]} Rxc2 {[%emt 0:00:48] The position is equal.} 25. Bxc2 {[%emt 0:02:23]} Nd7 {[%emt 0:00:16]} 26. b4 {[%emt 0:04:00]} Ne5 {[%emt 0:08:16]} 27. Bb3 {[%emt 0:00:31]} Qe7 {[%emt 0:00:36]} 28. Nc3 {[%emt 0:01:13]} Nc4 {[%emt 0:00:33]} 29. Bxc4 {[%emt 0:02:59]} dxc4 {[%emt 0:00:46]} 30. a3 {[%emt 0:00:11]} Bc6 {[%emt 0:01:28]} 31. Ne2 {[%emt 0:10:58] Weighted Error Value: White=0.05 (flawless) /Black=0.04 (flawless) .  OK:         	White=14    	Black=11     Best:        	---       	Black=1} 1/2-1/2

[Event "7th Sharjah Masters 2024"]
[Site "Sharjah"]
[Date "2024.05.14"]
[Round "1.35"]
[White "Yuffa, Daniil"]
[Black "Madaminov, Mukhiddin"]
[Result "1/2-1/2"]
[ECO "D35"]
[WhiteElo "2617"]
[BlackElo "2506"]
[Annotator "TA"]
[PlyCount "136"]
[EventDate "2024.05.13"]
[EventType "swiss"]
[EventCountry "UAE"]
[SourceTitle "playchess.com"]
[Source "ChessBase"]
[SourceQuality "1"]
[TimeControl "5400+30"]

{[%evp 15,136,16,16,12,19,16,26,20,22,11,18,14,22,15,22,18,23,23,23,22,16,8,6,-40,47,47,150,153,204,201,290,319,216,290,294,308,280,0,0,-185,18,-168,188,186,322,196,301,307,261,253,313,342,326,344,318,305,275,0,260,162,512,205,199,199,241,231,612,671,662,671,630,367,368,373,740,731,962,928,731,561,548,547,505,341,351,279,235,131,145,152,147,135,125,132,181,152,181,189,223,119,207,0,187,211,283,306,303,343,374,318,1289,1296,2874,264,241,0,1579,0,210,256,269,0,0]} 1. c4 {[%emt 0:00:10]} e6 {[%emt 0:00:56]} 2. Nc3 {[%emt 0:00:36]} d5 {[%emt 0:01:14]} 3. d4 {[%emt 0:00:16]} Nf6 {[%emt 0:00:45]} 4. cxd5 {[%emt 0:00:11]} exd5 {[%emt 0:01:02]} 5. Bg5 {[%emt 0:00:13][%cal Bc1g5,Bg5h4,Bh4g3,Bg3e5][%mdl 32]} c6 {[%emt 0:01:08]} 6. e3 {[%emt 0:00:09]} h6 {[%emt 0:00:47]} 7. Bh4 {[%emt 0:00:12]} Be7 {[%emt 0:00:43]} 8. Bd3 {[%emt 0:00:29]} O-O {[%emt 0:03:18]} 9. Nge2 {[%emt 0:02:46]} Re8 {[%emt 0:01:07]} 10. O-O {[%emt 0:00:13]} a5 {[%emt 0:00:48]} 11. Rc1 {[%emt 0:00:15] White has an edge.} Nbd7 {[%emt 0:03:45]} 12. Bg3 {[%emt 0:00:12][%cal Oc3b5]} Nf8 {[%emt 0:02:59]} 13. h3 {[%emt 0:01:00]} Ne6 {[%emt 0:05:43]} 14. Be5 {[%emt 0:06:05]} Nd7 {[%emt 0:03:45]} 15. Bh2 {[%emt 0:00:48]} b6 {[%emt 0:07:49]} 16. a3 {[%emt 0:22:42]} Bb7 {[%emt 0:05:32]} 17. Bb1 {[%emt 0:01:23]} Rc8 {[%emt 0:04:18]} 18. Ng3 {[%emt 0:06:45]} g6 {[%emt 0:07:00]} 19. f4 {[%emt 0:11:37]} (19. Nge2 $11 {deserves consideration.}) 19... Nef8 {[%emt 0:09:14]} (19... f5 $1 $15) 20. e4 $14 {[%emt 0:01:09]} dxe4 {[%emt 0:00:48]} (20... b5 $14) 21. f5 $16 {[%emt 0:00:19] aiming for fxg6.} (21. Ngxe4 $6 Ba6 $14) (21. Ncxe4 $6 f5 $11) 21... Ba6 {[%emt 0:09:02]} (21... Nf6 $16) 22. fxg6 $1 $18 {[%emt 0:03:04]} fxg6 {[%emt 0:04:04]} (22... Nxg6 $142 23. Rf2 Nf6) 23. Ba2+ $1 {[%emt 0:08:33]} Kh8 {[%emt 0:00:06]} 24. Rf7 {[%emt 0:33:23]} Nh7 {[%emt 0:02:51]} 25. Ngxe4 {[%emt 0:00:00]} (25. Ncxe4 $6 Ng5 $16) 25... Ng5 {[%emt 0:02:16] [#]} 26. Rxe7 {[%emt 0:00:00]} Qxe7 $11 {[%emt 0:08:10]} 27. Nd6 {[%emt 0:00:00]} (27. Bd6 $11 Qg7 28. Nxg5 hxg5 29. Qd2) 27... Qe3+ $19 {[%emt 0:03:16]} 28. Kh1 {[%emt 0:00:00][%cal Od1g1] [#]} Nf6 $4 {[%emt 0:01:11][%mdl 8192]} 29. Qg1 $18 {[%emt 0:00:00]} Qd2 {[%emt 0:04:09]} (29... Qxg1+ {was worth a try.} 30. Kxg1 Kh7) 30. Bb1 {[%emt 0:00:00]} Kh7 {[%emt 0:01:32]} (30... c5 $142) 31. Nxe8 {[%emt 0:00:00]} Rxe8 {[%emt 0:00:10]} 32. Be5 {[%emt 0:00:00] Threatens to win with Rc2.} Nh5 {[%emt 0:02:01][%cal Oe8e5] ...Rxe5! would now be deadly.} 33. Rc2 $1 {[%emt 0:00:00]} Qd3 {[%emt 0:00:07][%cal Og5h3]} 34. Re2 {[%emt 0:00:00]} Qc4 {[%emt 0:01:07][%cal Oe8e5]} 35. Ba2 {[%emt 0:00:55]} Qd3 {[%emt 0:00:07][%cal Oe8e5]} 36. Bb1 {[%emt 0:00:33] This pair of bishops is nice.} Qc4 {[%emt 0:00:05][%cal Oe8e5]} 37. Qe1 {[%emt 0:00:47]} Rf8 $2 {[%emt 0:04:22]} (37... c5 {is a better chance.}) 38. Rf2 {[%emt 0:00:46]} (38. Ba2 $142 Qd3 39. Bd6) 38... Rxf2 {[%emt 0:00:25]} 39. Qxf2 {[%emt 0:00:04]} Qe6 {[%emt 0:00:05]} 40. Ba2 $40 {[%emt 0:02:10][%cal Of2f8][%mdl 128] White wants to mate with Qf8! Black is in trouble.} Bc4 $2 {[%emt 0:00:35]} (40... Qf5 41. Qxf5 gxf5) 41. Bxc4 {[%emt 0:00:21]} Qxc4 {[%emt 0:00:00] [#]} 42. d5 $1 {[%emt 0:00:11][%mdl 512]} Kg8 {[%emt 0:01:34] Wards off Qf8+} 43. Qxb6 {[%emt 0:01:03]} Qf1+ {[%emt 0:00:46]} 44. Kh2 {[%emt 0:00:26]} Nf7 $2 {[%emt 0:00:40] Wards off dxc6} (44... Qe1) 45. dxc6 {[%emt 0:00:52] c7 is the strong threat.} Qf5 {[%emt 0:00:18]} 46. Qb8+ {[%emt 0:00:45]} Kh7 {[%emt 0:00:05]} 47. Bg3 {[%emt 0:00:23]} Nxg3 {[%emt 0:01:42]} 48. Qxg3 {[%emt 0:00:09][%mdl 4096] Endgame. Black must now prevent c7. KQN-KQN} Qc5 {[%emt 0:00:04]} 49. Qf4 {[%emt 0:01:27]} Kg7 {[%emt 0:00:58]} 50. c7 {[%emt 0:01:00]} Nd6 {[%emt 0:00:04]} 51. Na4 {[%emt 0:00:54]} ({White should play} 51. Qg3 $18) 51... Qxc7 $16 {[%emt 0:00:14]} 52. Qe5+ {[%emt 0:00:01]} Kf7 {[%emt 0:00:18]} 53. Nc5 {[%emt 0:00:09] White is more active.} Qe7 {[%emt 0:00:27]} 54. Qd5+ {[%emt 0:00:21]} Kg7 {[%emt 0:00:17]} (54... Kf6 $16 55. Nd3 Nf5) 55. Ne6+ {[%emt 0:00:24]} Kh7 {[%emt 0:00:41]} 56. b4 $1 {[%emt 0:00:28][%cal Bb2b4,Bb4b5][%mdl 32]} a4 {[%emt 0:01:09]} 57. Nd4 {[%emt 0:00:59] Against Nf5} (57. Nf4 $18) 57... Qf6 {[%emt 0:00:47]} (57... Ne4 $16 {keeps fighting.}) 58. Ne6 {[%emt 0:00:39]} Qe7 {[%emt 0:00:10]} 59. Nf4 {[%emt 0:00:28]} Qf6 {[%emt 0:00:23]} 60. Nd3 {[%emt 0:00:05]} h5 {[%emt 0:00:59]} 61. b5 {[%emt 0:00:34]} Nf5 {[%emt 0:00:09]} 62. Ne5 {[%emt 0:00:31]} Ne3 $2 {[%emt 0:00:45]} (62... Nd6 63. Kg1 Nxb5) 63. Qd7+ $18 {[%emt 0:01:22]} Kh6 {[%emt 0:00:28]} 64. Nf7+ $2 {[%emt 0:00:13]} (64. Qd4 Nf1+ 65. Kg1) 64... Kg7 {[%emt 0:00:11]} 65. Ne5+ $2 {[%emt 0:00:50]} (65. Ng5+ Kh6 66. Nf7+ Kg7 67. Ne5+ Kg8 68. Qc8+ Kg7 69. Qc7+ Kh6 70. Nf7+ Kg7 71. Ng5+ Kh6 72. h4 Qe5+ 73. Qxe5 Ng4+ 74. Kg3 Nxe5 75. b6) 65... Kh6 {[%emt 0:00:04]} 66. Nf7+ $2 {[%emt 0:00:31]} (66. Qd4) 66... Kg7 $1 {[%emt 0:00:06] [#]} 67. Ng5+ $1 {[%emt 0:00:29]} (67. Ne5+ Kg8 68. Qc8+ Kh7 69. Qc7+ Kh6 70. Nf7+ Kh7 71. Ng5+ Kh6 $18) 67... Kh6 {[%emt 0:00:12] [#]} 68. Nf7+ $2 {[%emt 0:00:34]} (68. Nf3 $1 $18 {And now Qd2 would win.} Nf1+ (68... Qb2 $2 69. Qd2 $18) 69. Kg1) 68... Kg7 {[%emt 0:02:37] Weighted Error Value: White=0.60/Black=0.55.  Loses game:     	White=2     	---        Missed win:     	White=2     	Black=1      Mistake:       	White=5     	Black=12     Inaccurate:     	White=3     	Black=3      OK:         	White=19    	Black=12     Best:        	White=3     	Black=7      Strong:       	White=3     	Black=1} 1/2-1/2

[Event "7th Sharjah Masters 2024"]
[Site "Sharjah"]
[Date "2024.05.14"]
[Round "1.36"]
[White "Dronavalli, Harika"]
[Black "Petrosyan, Manuel"]
[Result "1/2-1/2"]
[ECO "E32"]
[WhiteElo "2504"]
[BlackElo "2618"]
[Annotator "TA"]
[PlyCount "69"]
[EventDate "2024.05.13"]
[EventType "swiss"]
[EventCountry "UAE"]
[SourceTitle "playchess.com"]
[Source "ChessBase"]
[SourceQuality "1"]
[TimeControl "5400+30"]

{[%evp 13,69,7,7,0,25,0,14,0,0,0,0,0,0,0,0,0,58,51,112,16,18,16,20,6,13,7,12,11,19,18,31,29,22,24,23,17,22,20,20,12,17,17,20,14,7,0,8,8,8,8,8,0,0,0,7,7,8,-8]} 1. d4 {[%emt 0:00:07]} Nf6 {[%emt 0:02:40]} 2. c4 {[%emt 0:00:15]} e6 {[%emt 0:00:07]} 3. Nc3 {[%emt 0:00:09]} Bb4 {[%emt 0:00:24]} 4. Qc2 {[%emt 0:00:13]} O-O {[%emt 0:02:14]} 5. e4 {[%emt 0:01:03][%cal Be2e4,Be4e5][%mdl 32]} d5 {[%emt 0:00:29]} 6. e5 {[%emt 0:00:30]} Ne4 {[%emt 0:00:05]} 7. Bd3 {[%emt 0:01:24]} c5 {[%emt 0:03:04]} 8. Nf3 {[%emt 0:01:36]} cxd4 {[%emt 0:00:06]} 9. Nxd4 {[%emt 0:00:21]} Nd7 {[%emt 0:00:26]} 10. Bf4 {[%emt 0:00:44]} Qh4 {[%emt 0:01:06]} 11. g3 {[%emt 0:01:42]} Qh5 {[%emt 0:00:43]} 12. O-O {[%emt 0:02:23]} g5 {[%emt 0:05:58]} (12... Nxe5 13. Be2 Ng4 14. Bxg4 Qxg4 15. f3 $16 (15. cxd5 Ng5 $11)) 13. cxd5 {[%emt 0:02:02]} gxf4 {[%emt 0:03:22]} 14. dxe6 {[%emt 0:03:20]} fxg3 {[%emt 0:12:53]} (14... Nxe5 $11 15. Nxe4 fxe6) 15. hxg3 $14 {[%emt 0:10:01]} Nxc3 {[%emt 0:01:06] [#]} ({Better is} 15... Bxc3 $14 16. bxc3 Nxe5 17. Bxe4 Bxe6) 16. exd7 {[%emt 0:04:07] White is more active.} ({Reject} 16. bxc3 $6 Nxe5 17. cxb4 Bxe6 $11) (16. Kg2 $1 $16 {Threatens to win with Rh1.} Qxe5 (16... Nxe5 17. Rh1 $18) 17. exd7 Bxd7 18. Bxh7+ (18. bxc3 Rfc8 $14) 18... Kg7 19. bxc3) 16... Bxd7 $11 {[%emt 0:00:52]} 17. bxc3 {[%emt 0:00:26]} Rac8 {[%emt 0:01:47]} 18. Qd1 {[%emt 0:01:14]} Qxd1 {[%emt 0:01:57]} 19. Raxd1 {[%emt 0:00:17]} Bxc3 {[%emt 0:07:04] A strong pair of Bishops.} 20. Bf5 {[%emt 0:03:59]} Rc4 {[%emt 0:00:08]} 21. Bxd7 {[%emt 0:04:26][%cal Oe5e6] [#] Hoping for e6!} Rxd4 {[%emt 0:00:09]} 22. Rxd4 {[%emt 0:01:12]} Bxd4 {[%emt 0:00:34][%mdl 4096] Endgame. KRB-KRB} 23. Re1 {[%emt 0:00:25]} Rd8 {[%emt 0:02:20]} 24. e6 {[%emt 0:05:05]} fxe6 {[%emt 0:00:37] The position is equal.} 25. Bxe6+ {[%emt 0:00:05]} Kg7 {[%emt 0:00:04]} 26. Kg2 {[%emt 0:00:19]} b5 {[%emt 0:01:06]} 27. Bb3 {[%emt 0:05:38]} Rd7 {[%emt 0:08:46]} 28. Rd1 {[%emt 0:04:12]} a5 {[%emt 0:04:37]} 29. a4 {[%emt 0:03:54]} bxa4 {[%emt 0:00:22]} 30. Bxa4 {[%emt 0:00:09]} Rd6 {[%emt 0:00:07]} 31. f4 {[%emt 0:00:54]} Bc5 {[%emt 0:01:24]} 32. Rxd6 {[%emt 0:00:06]} Bxd6 {[%emt 0:00:05]} 33. Kf3 {[%emt 0:00:04]} h6 {[%emt 0:00:19]} 34. g4 {[%emt 0:00:19][%cal Bg3g4,Bg4g5][%mdl 32]} Kf6 {[%emt 0:00:04]} 35. g5+ {[%emt 0:45:19] Weighted Error Value: White=0.07 (flawless) /Black=0.07 (flawless) .  Mistake:       	White=1     	Black=2      OK:         	White=6     	Black=14     Best:        	White=1     	Black=2} 1/2-1/2